bitfinex-derivatives/quotes_BTCF0:USTF0_20230901
["timestamp","ask_amount","ask_price","bid_price","bid_amount"]
[1693611274836,0.48928005,25815.0,25814.0,1.09708291]
[1693611276235,0.29566,25815.0,25814.0,1.09708291]
[1693611277336,0.29566,25815.0,25814.0,1.07708291]
[1693611278534,0.39264205,25815.0,25814.0,0.709272]
[1693611278741,0.29566,25815.0,25814.0,1.07708291]
[1693611282744,0.489322,25815.0,25814.0,1.07708291]
[1693611283234,0.48932182,25815.0,25814.0,1.07708291]
[1693611283443,0.29566,25815.0,25814.0,1.07708291]
[1693611283942,0.48932017,25815.0,25814.0,1.07708291]
[1693611287643,0.34399017,25815.0,25814.0,1.07708291]
[1693611290844,0.19866017,25815.0,25814.0,1.07708291]
[1693611292746,0.34398317,25815.0,25814.0,1.07708291]
[1693611292949,0.34398317,25815.0,25814.0,0.96770477]
[1693611294045,0.34398317,25815.0,25814.0,1.07708291]
[1693611299241,0.19866017,25815.0,25814.0,1.22241891]
[1693611299447,0.15991691,25815.0,25814.0,1.52241891]
[1693611299751,0.005,25815.0,25814.0,1.65864956]
[1693611300044,0.005,25815.0,25814.0,1.54241891]
[1693611300244,0.23229694,25822.0,25819.0,0.3]
[1693611300443,0.27091693,25824.0,25819.0,0.3]
[1693611300444,0.37756994,25824.0,25821.0,0.4186]
[1693611300643,0.39756994,25824.0,25823.0,0.854434]
[1693611300841,0.39756994,25824.0,25823.0,1.07690891]
[1693611301040,0.145273,25824.0,25823.0,1.07690891]
[1693611301241,0.310546,25824.0,25823.0,1.07690891]
[1693611302751,0.311546,25824.0,25823.0,1.07690891]
[1693611304846,0.440689,25824.0,25823.0,0.4186]
[1693611305045,0.605962,25824.0,25823.0,0.4186]
[1693611305747,0.65765714,25824.0,25823.0,0.4186]
[1693611307056,0.55767105,25824.0,25823.0,0.4186]
[1693611307452,0.65765714,25824.0,25823.0,0.4186]
[1693611307651,0.81224584,25824.0,25823.0,0.4186]
[1693611307851,0.65765714,25824.0,25823.0,0.4186]
[1693611308355,0.81224352,25824.0,25823.0,0.4186]
[1693611308650,0.71225743,25824.0,25823.0,0.4186]
[1693611308853,0.69225743,25824.0,25823.0,0.4186]
[1693611309047,0.71225743,25824.0,25823.0,0.4186]
[1693611311047,0.81224352,25824.0,25823.0,0.4186]
[1693611311353,0.81224352,25824.0,25823.0,0.563879]
[1693611311851,0.71225743,25824.0,25823.0,0.563879]
[1693611312052,0.71225743,25824.0,25823.0,0.4186]
[1693611312352,0.65765714,25824.0,25823.0,0.4186]
[1693611312557,0.65765714,25824.0,25823.0,0.563877]
[1693611314650,0.55767105,25824.0,25823.0,0.563877]
[1693611315061,0.65765714,25824.0,25823.0,0.563877]
[1693611316652,0.55767105,25824.0,25823.0,0.563877]
[1693611317052,0.65765714,25824.0,25823.0,0.563877]
[1693611317360,0.55767105,25824.0,25823.0,0.563877]
[1693611319147,0.65765714,25824.0,25823.0,0.563877]
[1693611319553,0.55767105,25824.0,25823.0,0.563877]
[1693611320155,0.71212838,25824.0,25823.0,0.563877]
[1693611320349,0.79211447,25824.0,25823.0,0.563877]
[1693611320948,0.69212838,25824.0,25823.0,0.563877]
[1693611321156,0.93738747,25824.0,25823.0,0.4186]
[1693611322861,0.78293014,25824.0,25823.0,0.4186]
[1693611323961,0.00387,25823.0,25820.0,0.1534]
[1693611324255,1.35116963,25822.0,25821.0,0.4186]
[1693611326064,1.35116963,25822.0,25821.0,0.4276]
[1693611326965,1.35216963,25822.0,25821.0,0.4186]
[1693611327863,1.19770014,25822.0,25821.0,0.4186]
[1693611328465,1.19670014,25822.0,25821.0,0.4186]
[1693611328660,1.19770014,25822.0,25821.0,0.4186]
[1693611329867,1.09771405,25822.0,25821.0,0.53169677]
[1693611330061,1.19770014,25822.0,25821.0,0.4186]
[1693611334569,1.39077172,25822.0,25821.0,0.4186]
[1693611342969,1.39077172,25822.0,25821.0,0.5712]
[1693611344677,1.19770014,25822.0,25821.0,0.5712]
[1693611353878,1.39121201,25822.0,25821.0,0.5712]
[1693611359481,1.19770014,25822.0,25821.0,0.5712]
[1693611365990,1.000732,25822.0,25821.0,0.68429677]
[1693611366177,1.10071809,25822.0,25821.0,0.68429677]
[1693611368280,1.10071809,25822.0,25821.0,0.82958777]
[1693611368785,1.19770014,25822.0,25821.0,0.716491]
[1693611374483,1.09771405,25822.0,25821.0,0.716491]
[1693611374682,1.19770014,25822.0,25821.0,0.716491]
[1693611379288,1.05241714,25822.0,25821.0,0.861782]
[1693611383091,1.05241714,25822.0,25821.0,0.443182]
[1693611393708,1.05241714,25822.0,25821.0,0.290582]
[1693611395906,1.05241714,25822.0,25821.0,0.442882]
[1693611396909,1.05241714,25822.0,25821.0,0.861482]
[1693611397208,1.05241714,25822.0,25821.0,0.716191]
[1693611398515,1.19770114,25822.0,25821.0,0.5709]
[1693611406621,1.19770114,25822.0,25821.0,0.4186]
[1693611407319,1.19770114,25822.0,25821.0,0.5843]
[1693611413220,1.19770114,25822.0,25821.0,0.1657]
[1693611416925,1.19770114,25822.0,25821.0,0.5843]
[1693611426931,1.19770114,25822.0,25821.0,0.1657]
[1693611428834,1.19770114,25822.0,25821.0,0.456279]
[1693611428835,0.855449,25822.0,25821.0,0.456279]
[1693611429025,0.001,25822.0,25821.0,1.40793391]
[1693611430132,0.001,25822.0,25821.0,1.70793391]
[1693611430333,0.23229694,25824.0,25821.0,1.485459]
[1693611430535,0.23229694,25824.0,25823.0,0.4186]
[1693611430834,0.23229694,25824.0,25823.0,1.019712]
[1693611431035,0.23229694,25824.0,25823.0,1.24218691]
[1693611432134,0.23229694,25824.0,25823.0,1.22218691]
[1693611432332,0.23229694,25824.0,25823.0,1.24218691]
[1693611436641,0.23229694,25824.0,25823.0,1.22218691]
[1693611440648,0.23229694,25824.0,25823.0,1.24218691]
[1693611440944,0.23229694,25824.0,25823.0,1.22218691]
[1693611441838,0.23229694,25824.0,25823.0,1.23218691]
[1693611442037,0.23229694,25824.0,25823.0,1.24118691]
[1693611444638,0.23229694,25824.0,25823.0,1.26118691]
[1693611445146,0.23229694,25824.0,25823.0,1.24118691]
[1693611451551,0.15498329,25825.0,25824.0,0.3]
[1693611451848,0.15498329,25825.0,25824.0,0.99721464]
[1693611452150,0.15498329,25825.0,25824.0,1.041392]
[1693611452350,0.15498329,25825.0,25824.0,1.26386691]
[1693611453448,0.1549675,25827.0,25826.0,0.3]
[1693611453649,0.1549675,25828.0,25826.0,1.70726236]
[1693611453849,0.1549675,25828.0,25827.0,0.4186]
[1693611454052,0.1549675,25828.0,25827.0,1.54086802]
[1693611456851,0.4454675,25828.0,25827.0,1.28623388]
[1693611457056,0.4654675,25828.0,25827.0,1.17313711]
[1693611457458,0.56545359,25828.0,25827.0,1.17313711]
[1693611457656,0.4654675,25828.0,25827.0,1.24513711]
[1693611457957,0.4654675,25828.0,25827.0,1.35823388]
[1693611458155,0.50422911,25828.0,25827.0,1.28086574]
[1693611458353,0.64947911,25828.0,25827.0,1.28086574]
[1693611458856,0.64947911,25828.0,25827.0,1.39024388]
[1693611459256,0.64947911,25828.0,25827.0,1.28086574]
[1693611459458,0.64947911,25828.0,25827.0,1.39024388]
[1693611459654,0.64947911,25828.0,25827.0,1.28086574]
[1693611460057,0.64947911,25828.0,25827.0,1.39024388]
[1693611461152,0.62947911,25828.0,25827.0,1.39024388]
[1693611461361,0.64947911,25828.0,25827.0,1.39024388]
[1693611462260,0.62947911,25828.0,25827.0,1.39024388]
[1693611466162,0.48422911,25828.0,25827.0,1.39024388]
[1693611471365,0.62948011,25828.0,25827.0,1.39024388]
[1693611482576,0.62948011,25828.0,25827.0,0.85851297]
[1693611482768,1.21333111,25828.0,25827.0,0.14940097]
[1693611482968,1.21333111,25828.0,25827.0,0.29465697]
[1693611483175,1.41029925,25828.0,25827.0,0.29465697]
[1693611484484,1.21657014,25828.0,25827.0,0.29465697]
[1693611487190,0.79797014,25828.0,25827.0,0.71325697]
[1693611491590,0.69798405,25828.0,25827.0,0.71325697]
[1693611492089,0.601002,25828.0,25827.0,0.71325697]
[1693611492279,0.601002,25828.0,25827.0,0.82635374]
[1693611492475,0.77472436,25828.0,25827.0,1.13686574]
[1693611492680,0.77472436,25828.0,25827.0,1.39894388]
[1693611494187,0.581002,25828.0,25827.0,1.39894388]
[1693611495491,0.581002,25828.0,25827.0,1.37894388]
[1693611496592,0.73589507,25828.0,25827.0,1.37894388]
[1693611499090,0.59064407,25828.0,25827.0,1.37894388]
[1693611499987,0.44539307,25828.0,25827.0,1.44679891]
[1693611500188,0.44539307,25828.0,25827.0,1.52414022]
[1693611506303,0.2905,25828.0,25827.0,1.52414022]
[1693611509000,0.44538407,25829.0,25827.0,1.88290037]
[1693611509194,0.290491,25829.0,25828.0,0.71839049]
[1693611509389,0.44538407,25829.0,25828.0,1.17414049]
[1693611510401,0.44538407,25829.0,25828.0,1.16314049]
[1693611511308,0.44538407,25829.0,25828.0,1.17314049]
[1693611512904,0.59055754,25829.0,25828.0,0.87335]
[1693611513407,0.59055754,25829.0,25828.0,0.98272814]
[1693611514608,0.59055754,25829.0,25828.0,1.09582491]
[1693611515306,0.435737,25829.0,25828.0,1.09582491]
[1693611515506,0.30016332,25831.0,25828.0,1.67717637]
[1693611515708,0.145353,25831.0,25830.0,0.49588586]
[1693611515903,0.290588,25831.0,25830.0,1.09448798]
[1693611516097,0.290588,25831.0,25830.0,1.213981]
[1693611516303,0.290588,25831.0,25830.0,1.32707777]
[1693611517008,0.290588,25831.0,25830.0,1.31607777]
[1693611517209,0.290588,25831.0,25830.0,1.23879191]
[1693611517410,0.290588,25831.0,25830.0,1.24879191]
[1693611522210,0.435823,25831.0,25830.0,0.881078]
[1693611522509,0.455823,25831.0,25830.0,0.881078]
[1693611522908,0.55280505,25831.0,25830.0,0.99045614]
[1693611523415,0.55280505,25831.0,25830.0,0.881078]
[1693611524112,0.455823,25831.0,25830.0,0.99417477]
[1693611525911,0.455823,25831.0,25830.0,1.10355291]
[1693611526115,0.455823,25831.0,25830.0,1.13941477]
[1693611526620,0.435823,25831.0,25830.0,1.13941477]
[1693611528314,0.435823,25831.0,25830.0,1.24879291]
[1693611528513,0.435823,25831.0,25830.0,0.99417477]
[1693611528820,0.435823,25831.0,25830.0,0.881078]
[1693611529019,0.435823,25831.0,25830.0,0.99045614]
[1693611529620,0.435823,25831.0,25830.0,1.10355291]
[1693611532519,0.435823,25831.0,25830.0,1.24879291]
[1693611533013,0.435823,25831.0,25830.0,1.026318]
[1693611534123,0.435823,25831.0,25830.0,1.24879291]
[1693611536523,0.435823,25831.0,25830.0,1.13941477]
[1693611536715,0.435823,25831.0,25830.0,1.24879291]
[1693611537115,0.435823,25831.0,25830.0,1.13941477]
[1693611537521,0.435823,25831.0,25830.0,1.24879291]
[1693611537912,0.435823,25831.0,25830.0,1.13941477]
[1693611538118,0.435823,25831.0,25830.0,1.026318]
[1693611538822,0.435823,25831.0,25830.0,1.13941477]
[1693611539224,0.59063332,25831.0,25830.0,1.13941477]
[1693611539919,0.59063332,25831.0,25830.0,1.24879291]
[1693611540327,0.68761537,25831.0,25830.0,1.026318]
[1693611540526,0.435823,25831.0,25830.0,1.13569614]
[1693611542428,0.435823,25831.0,25830.0,1.24879291]
[1693611547330,0.435823,25831.0,25830.0,1.32607877]
[1693611548316,0.435823,25831.0,25830.0,1.212982]
[1693611549027,0.435823,25831.0,25830.0,1.32607877]
[1693611550128,0.435823,25831.0,25830.0,1.212982]
[1693611550326,0.435823,25831.0,25830.0,1.225982]
[1693611550520,0.59063332,25831.0,25830.0,1.14869614]
[1693611550919,0.68761537,25831.0,25830.0,1.052318]
[1693611551531,0.68761537,25831.0,25830.0,1.026318]
[1693611554931,0.59063332,25831.0,25830.0,1.13941477]
[1693611556036,0.59063332,25831.0,25830.0,1.24879291]
[1693611556236,0.59063332,25831.0,25830.0,1.32607877]
[1693611559428,0.435823,25831.0,25830.0,1.32607877]
[1693611567547,0.435823,25831.0,25830.0,1.24879291]
[1693611567741,0.435823,25831.0,25830.0,1.3647217]
[1693611569546,0.59073854,25831.0,25830.0,1.3647217]
[1693611569742,0.435823,25831.0,25830.0,1.3647217]
[1693611572348,0.59073572,25831.0,25830.0,1.3647217]
[1693611572545,0.435823,25831.0,25830.0,1.3647217]
[1693611574450,0.59073499,25831.0,25830.0,1.3647217]
[1693611574651,0.435823,25831.0,25830.0,1.3647217]
[1693611575146,0.59073497,25831.0,25830.0,1.3647217]
[1693611577353,0.435823,25831.0,25830.0,1.32611101]
[1693611577654,0.435823,25831.0,25830.0,1.32611256]
[1693611580564,0.435823,25831.0,25830.0,1.24879291]
[1693611583066,0.435823,25831.0,25830.0,1.13941477]
[1693611583370,0.435823,25831.0,25830.0,1.24879291]
[1693611585972,0.435823,25831.0,25830.0,1.3647217]
[1693611587273,0.435823,25831.0,25830.0,1.25534356]
[1693611587670,0.435823,25831.0,25830.0,1.14224679]
[1693611589572,0.59074147,25831.0,25830.0,1.25162493]
[1693611590073,0.59074147,25831.0,25830.0,1.14224679]
[1693611590275,0.59074147,25831.0,25830.0,1.25162493]
[1693611590581,0.59074147,25831.0,25830.0,1.14224679]
[1693611590877,0.59074147,25831.0,25830.0,1.25162493]
[1693611591379,0.59074147,25831.0,25830.0,1.3647217]
[1693611600481,0.59074147,25831.0,25830.0,1.14224679]
[1693611600683,0.68772352,25831.0,25830.0,1.14224679]
[1693611601787,0.68772352,25831.0,25830.0,1.25162493]
[1693611602479,0.59074147,25831.0,25830.0,1.3647217]
[1693611607082,0.44550647,25831.0,25830.0,1.3647217]
[1693611609279,0.44550447,25831.0,25830.0,1.3647217]
[1693611610992,0.59073747,25831.0,25830.0,1.3647217]
[1693611611287,0.44550447,25831.0,25830.0,1.3647217]
[1693611613590,0.54248652,25831.0,25830.0,1.3647217]
[1693611614282,0.44550447,25831.0,25830.0,1.3647217]
[1693611615194,0.44550447,25831.0,25830.0,1.5099617]
[1693611617091,0.30027147,25831.0,25830.0,1.5099617]
[1693611618196,0.15503847,25831.0,25830.0,1.5099617]
[1693611618396,0.30027147,25831.0,25830.0,1.5099617]
[1693611620693,0.15503847,25831.0,25830.0,1.5099617]
[1693611621698,0.00012,25831.0,25830.0,1.50986957]
[1693611621892,0.1550059,25831.0,25830.0,1.50986957]
[1693611622495,0.00012,25831.0,25830.0,1.50986957]
[1693611623295,0.00012,25831.0,25830.0,1.41403291]
[1693611625191,0.00012,25831.0,25830.0,1.56848179]
[1693611625393,0.00012,25831.0,25830.0,1.82150083]
[1693611625600,0.00012,25831.0,25830.0,1.56848179]
[1693611627501,0.00012,25831.0,25830.0,1.41403291]
[1693611629794,0.00012,25831.0,25830.0,1.39403291]
[1693611630898,0.00012,25831.0,25830.0,1.41403291]
[1693611631099,0.00012,25831.0,25830.0,1.39403291]
[1693611631807,0.00012,25831.0,25830.0,1.80037169]
[1693611632205,0.00012,25831.0,25830.0,2.22813168]
[1693611632502,0.00012,25831.0,25830.0,2.42119278]
[1693611632701,0.00012,25831.0,25830.0,2.22813168]
[1693611633303,0.00012,25831.0,25830.0,2.25513168]
[1693611633513,0.00012,25831.0,25830.0,2.43919278]
[1693611633804,0.00012,25831.0,25830.0,2.28313168]
[1693611633999,0.00012,25831.0,25830.0,2.47619278]
[1693611634606,0.145211,25835.0,25833.0,0.3]
[1693611634810,0.290413,25836.0,25834.0,1.1151671]
[1693611634995,0.290413,25836.0,25835.0,0.49572648]
[1693611635199,0.290413,25836.0,25835.0,0.95135948]
[1693611635405,0.290413,25836.0,25835.0,1.17383439]
[1693611636603,0.290413,25836.0,25835.0,1.09670791]
[1693611636812,0.290413,25836.0,25835.0,1.10670791]
[1693611637006,0.290413,25836.0,25835.0,1.11570791]
[1693611637797,0.290413,25836.0,25835.0,1.09570791]
[1693611638001,0.290413,25836.0,25835.0,1.11570791]
[1693611638804,0.290413,25836.0,25835.0,1.09570791]
[1693611639708,0.294283,25836.0,25835.0,1.09570791]
[1693611647115,0.43949,25836.0,25835.0,1.09570791]
[1693611654820,0.43562,25836.0,25835.0,1.09570791]
[1693611655016,0.43562,25836.0,25835.0,1.24091891]
[1693611655221,0.290413,25836.0,25835.0,1.24091891]
[1693611658417,0.290413,25836.0,25835.0,1.31801148]
[1693611658724,0.290413,25836.0,25835.0,1.24091891]
[1693611659122,0.290413,25836.0,25835.0,1.09570791]
[1693611660329,0.290413,25836.0,25835.0,1.17280048]
[1693611661627,0.290413,25836.0,25835.0,1.33801148]
[1693611662026,0.145198,25838.0,25836.0,0.3]
[1693611662228,0.145199,25837.0,25836.0,0.445199]
[1693611662428,0.145198,25838.0,25836.0,1.154197]
[1693611662630,0.145198,25838.0,25837.0,0.4186]
[1693611662824,0.290392,25838.0,25837.0,1.07667191]
[1693611664430,0.435589,25838.0,25837.0,1.07667191]
[1693611665230,0.145189,25839.0,25837.0,1.80542654]
[1693611665435,0.145189,25839.0,25838.0,0.64107491]
[1693611665739,0.145189,25839.0,25838.0,1.07665691]
[1693611666240,0.29038,25839.0,25838.0,1.07665691]
[1693611667138,0.29038,25839.0,25838.0,1.22185191]
[1693611669735,0.53255305,25839.0,25838.0,0.708988]
[1693611669941,0.55255305,25839.0,25838.0,0.708988]
[1693611671535,0.455571,25839.0,25838.0,0.708988]
[1693611672437,0.455571,25839.0,25838.0,0.82208477]
[1693611674942,0.455571,25839.0,25838.0,0.93146291]
[1693611677253,0.455571,25839.0,25838.0,0.82208477]
[1693611677442,0.455571,25839.0,25838.0,0.93146291]
[1693611677644,0.455571,25839.0,25838.0,0.82208477]
[1693611678047,0.435571,25839.0,25838.0,0.82208477]
[1693611678243,0.455571,25839.0,25838.0,0.82208477]
[1693611678444,0.435571,25839.0,25838.0,0.93146291]
[1693611678644,0.435571,25839.0,25838.0,0.82208477]
[1693611679344,0.435571,25839.0,25838.0,0.93146291]
[1693611686151,0.435571,25839.0,25838.0,1.23005791]
[1693611689759,0.435571,25839.0,25838.0,1.30715048]
[1693611690058,0.435571,25839.0,25838.0,1.23005791]
[1693611690259,0.435571,25839.0,25838.0,1.30715048]
[1693611703464,0.59024284,25839.0,25838.0,1.23005791]
[1693611704469,0.59024284,25839.0,25838.0,1.34569677]
[1693611705869,0.435571,25839.0,25838.0,1.34569677]
[1693611706976,0.59024284,25839.0,25838.0,1.34569677]
[1693611709176,0.44505184,25839.0,25838.0,1.34569677]
[1693611710174,0.29038,25839.0,25838.0,1.34569677]
[1693611710370,0.44505184,25839.0,25838.0,1.34569677]
[1693611710571,0.29038,25839.0,25838.0,1.34569677]
[1693611710774,0.29038,25839.0,25838.0,1.23005791]
[1693611710973,0.29038,25839.0,25838.0,1.3457836]
[1693611711277,0.29038,25839.0,25838.0,1.4909786]
[1693611711677,0.29038,25839.0,25838.0,1.5359786]
[1693611713083,0.29038,25839.0,25838.0,1.5259786]
[1693611713277,0.29038,25839.0,25838.0,1.5629786]
[1693611713574,0.29038,25839.0,25838.0,1.44725291]
[1693611717474,0.29038,25839.0,25838.0,1.56298418]
[1693611717675,0.29038,25839.0,25838.0,1.44725291]
[1693611718078,0.29038,25839.0,25838.0,1.56298401]
[1693611718285,0.435571,25839.0,25838.0,1.56298401]
[1693611719283,0.435571,25839.0,25838.0,1.58298401]
[1693611719479,0.435571,25839.0,25838.0,1.46725291]
[1693611720883,0.435571,25839.0,25838.0,1.079583]
[1693611721083,0.435571,25839.0,25838.0,1.19529627]
[1693611721287,0.580762,25839.0,25838.0,0.90490727]
[1693611721486,0.77773014,25839.0,25838.0,0.90490935]
[1693611721784,0.77773014,25839.0,25838.0,0.75150935]
[1693611722386,0.67774405,25839.0,25838.0,0.635794]
[1693611722984,0.77773014,25839.0,25838.0,0.75149628]
[1693611723181,0.67774405,25839.0,25838.0,0.75149628]
[1693611724191,0.77773014,25839.0,25838.0,0.75149628]
[1693611724384,0.67774405,25839.0,25838.0,0.75149628]
[1693611724987,0.580762,25839.0,25838.0,0.75149628]
[1693611725196,0.580762,25839.0,25838.0,0.89669128]
[1693611725494,0.580762,25839.0,25838.0,1.00606942]
[1693611725696,0.580762,25839.0,25838.0,0.89669128]
[1693611725897,0.580762,25839.0,25838.0,1.00978805]
[1693611726997,0.68074809,25839.0,25838.0,1.00978805]
[1693611727196,0.580762,25839.0,25838.0,1.00978805]
[1693611729198,0.580762,25839.0,25838.0,0.89669128]
[1693611730292,0.580762,25839.0,25838.0,1.00978805]
[1693611731200,0.580762,25839.0,25838.0,0.89669128]
[1693611732100,0.77773014,25839.0,25838.0,0.89669128]
[1693611732998,0.67774405,25839.0,25838.0,0.89669128]
[1693611733300,0.77773014,25839.0,25838.0,0.89669128]
[1693611733599,0.67774405,25839.0,25838.0,0.89669128]
[1693611733799,0.67774405,25839.0,25838.0,1.00978805]
[1693611734298,0.77773014,25839.0,25838.0,1.00978805]
[1693611734498,0.67774405,25839.0,25838.0,0.89669128]
[1693611736508,0.67774405,25839.0,25838.0,1.00606942]
[1693611736709,0.580762,25839.0,25838.0,1.00978805]
[1693611737708,0.580762,25839.0,25838.0,0.89669128]
[1693611738409,0.68074809,25839.0,25838.0,0.89669128]
[1693611739010,0.77773014,25839.0,25838.0,0.89669128]
[1693611741606,0.67774405,25839.0,25838.0,0.89669128]
[1693611742403,0.580762,25839.0,25838.0,0.89669128]
[1693611742604,0.580762,25839.0,25838.0,1.00978805]
[1693611745198,0.77773014,25839.0,25838.0,1.00978805]
[1693611745395,0.77773014,25839.0,25838.0,0.89669128]
[1693611746608,0.93258332,25839.0,25838.0,0.89669128]
[1693611746804,0.77773014,25839.0,25838.0,0.89669128]
[1693611748412,0.77773014,25839.0,25838.0,0.780989]
[1693611748607,0.67774405,25839.0,25838.0,0.780989]
[1693611748807,0.67774405,25839.0,25838.0,0.8967042]
[1693611749003,0.77773014,25839.0,25838.0,0.8967042]
[1693611749312,0.67774405,25839.0,25838.0,0.780989]
[1693611749513,0.83259723,25839.0,25838.0,0.780989]
[1693611750308,0.93258332,25839.0,25838.0,0.780989]
[1693611752714,0.73561518,25839.0,25838.0,0.89036714]
[1693611753015,0.73561518,25839.0,25838.0,0.89408577]
[1693611754117,0.83560127,25839.0,25838.0,0.89408577]
[1693611754716,0.73561518,25839.0,25838.0,0.89408577]
[1693611756111,0.73561518,25839.0,25838.0,1.03928077]
[1693611756418,0.73561518,25839.0,25838.0,0.89408577]
[1693611758218,0.73561518,25839.0,25838.0,1.00346391]
[1693611760122,0.73561518,25839.0,25838.0,1.14865991]
[1693611761627,0.73561518,25839.0,25838.0,1.03928177]
[1693611762325,0.73561518,25839.0,25838.0,1.14865991]
[1693611763124,0.73561518,25839.0,25838.0,1.03928177]
[1693611763526,0.83560127,25839.0,25838.0,1.03928177]
[1693611763924,0.73561518,25839.0,25838.0,1.14865991]
[1693611764826,0.59042418,25839.0,25838.0,1.14865991]
[1693611765126,0.59042418,25839.0,25838.0,1.29385591]
[1693611772932,0.59042418,25839.0,25838.0,1.14865991]
[1693611775137,0.435571,25839.0,25838.0,1.14865991]
[1693611777532,0.59042418,25839.0,25838.0,1.14865991]
[1693611779342,0.59042418,25839.0,25838.0,1.03928177]
[1693611779545,0.59042418,25839.0,25838.0,1.14865991]
[1693611779737,0.435571,25839.0,25838.0,1.14865991]
[1693611780734,0.435571,25839.0,25838.0,1.03928177]
[1693611780939,0.59042418,25839.0,25838.0,0.926185]
[1693611781335,0.78739232,25839.0,25838.0,0.926185]
[1693611781640,0.68740623,25839.0,25838.0,0.926185]
[1693611782747,1.164553,25839.0,25838.0,0.14915765]
[1693611782934,1.164553,25839.0,25838.0,0.072]
[1693611783133,1.36152114,25839.0,25838.0,0.072]
[1693611785438,1.55498975,25839.0,25838.0,0.072]
[1693611791855,1.55487963,25839.0,25838.0,0.072]
[1693611793342,1.36152114,25839.0,25838.0,0.072]
[1693611793650,1.55487963,25839.0,25838.0,0.072]
[1693611794553,1.36152114,25839.0,25838.0,0.072]
[1693611795349,1.34152114,25839.0,25838.0,0.072]
[1693611795546,1.36152114,25839.0,25838.0,0.072]
[1693611801153,1.34152114,25839.0,25838.0,0.072]
[1693611804655,1.29917618,25839.0,25838.0,0.71307491]
[1693611804850,1.144553,25839.0,25838.0,0.71307491]
[1693611805247,1.144553,25839.0,25838.0,0.60369677]
[1693611805446,1.29917618,25839.0,25838.0,0.60369677]
[1693611805855,1.29917618,25839.0,25838.0,0.4906]
[1693611806356,1.39615823,25839.0,25838.0,0.4906]
[1693611806554,1.49614432,25839.0,25838.0,0.4906]
[1693611811149,1.29917618,25839.0,25838.0,0.4906]
[1693611811354,1.39615823,25839.0,25838.0,0.4906]
[1693611811757,1.29917618,25839.0,25838.0,0.73307491]
[1693611812147,1.29917618,25839.0,25838.0,0.62369677]
[1693611813460,1.39615823,25839.0,25838.0,0.60369677]
[1693611813759,1.49614432,25839.0,25838.0,0.5106]
[1693611814155,1.39615823,25839.0,25838.0,0.5106]
[1693611814362,1.49614432,25839.0,25838.0,0.5106]
[1693611814653,1.39615823,25839.0,25838.0,0.5106]
[1693611814854,1.49614432,25839.0,25838.0,0.5106]
[1693611816262,1.49614432,25839.0,25838.0,0.4906]
[1693611816956,1.39615823,25839.0,25838.0,0.4906]
[1693611817165,0.73538518,25839.0,25838.0,0.655794]
[1693611817553,0.73538518,25839.0,25838.0,0.87826891]
[1693611818558,0.73538518,25839.0,25838.0,0.635794]
[1693611818761,0.83236723,25839.0,25838.0,0.635794]
[1693611819162,0.93235332,25839.0,25838.0,0.4906]
[1693611819863,0.83236723,25839.0,25838.0,0.4906]
[1693611820454,0.67774405,25839.0,25838.0,0.4906]
[1693611820864,0.8324485,25839.0,25838.0,0.4906]
[1693611821061,0.93243459,25839.0,25838.0,0.4906]
[1693611822061,0.8324485,25839.0,25838.0,0.4906]
[1693611822363,0.73546645,25839.0,25838.0,0.71307491]
[1693611823259,0.580762,25839.0,25838.0,0.71307491]
[1693611823757,0.67774405,25839.0,25838.0,0.60369677]
[1693611824363,0.67774405,25839.0,25838.0,0.71307491]
[1693611825163,0.67774405,25839.0,25838.0,0.85826991]
[1693611825964,0.580762,25839.0,25838.0,0.85826991]
[1693611828171,0.580762,25839.0,25838.0,0.71307491]
[1693611828563,0.77414255,25839.0,25838.0,0.71307491]
[1693611829067,0.77414255,25839.0,25838.0,0.4906]
[1693611829373,0.8711246,25839.0,25838.0,0.4906]
[1693611830067,1.0163156,25839.0,25838.0,0.072]
[1693611830270,1.26153505,25839.0,25838.0,0.072]
[1693611830465,1.36152114,25839.0,25838.0,0.072]
[1693611840775,1.34152114,25839.0,25838.0,0.072]
[1693611841272,1.36152114,25839.0,25838.0,0.072]
[1693611842077,1.34152114,25839.0,25838.0,0.072]
[1693611844280,1.36152114,25839.0,25838.0,0.072]
[1693611847380,1.34152114,25839.0,25838.0,0.072]
[1693611848683,1.5935778,25839.0,25838.0,0.05913743]
[1693611849981,1.36152114,25839.0,25838.0,0.05913743]
[1693611860693,1.34152114,25839.0,25838.0,0.05913743]
[1693611860891,1.36152114,25839.0,25838.0,0.05913743]
[1693611861193,1.34152114,25839.0,25838.0,0.05913743]
[1693611874411,1.5735778,25839.0,25838.0,0.05913743]
[1693611878820,1.5735778,25839.0,25838.0,0.04857312]
[1693611886022,1.34152114,25839.0,25838.0,0.04857312]
[1693611888329,1.43099985,25839.0,25838.0,0.04857312]
[1693611890932,1.70173263,25839.0,25838.0,0.04857312]
[1693611891230,1.43099985,25839.0,25838.0,0.04857312]
[1693611894730,1.70173263,25839.0,25838.0,0.04857312]
[1693611899639,3.22173263,25839.0,25836.0,0.1625]
[1693611899835,0.4186,25837.0,25836.0,0.1625]
[1693611900135,1.23407871,25837.0,25836.0,0.1625]
[1693611900346,0.3,25835.0,25833.0,0.1662]
[1693611900646,0.435684,25832.0,25829.0,0.07702436]
[1693611900838,1.00921656,25830.0,25829.0,0.09702436]
[1693611901039,1.3514237,25830.0,25829.0,0.24226936]
[1693611901639,1.25444165,25830.0,25829.0,0.35536613]
[1693611902231,1.09954209,25830.0,25829.0,0.35536613]
[1693611902632,1.10254209,25830.0,25829.0,0.39236613]
[1693611903031,1.10554209,25830.0,25829.0,0.42936613]
[1693611903236,1.10554209,25830.0,25829.0,0.57461213]
[1693611903638,1.10554209,25830.0,25829.0,0.72771213]
[1693611904235,1.10554209,25830.0,25829.0,0.65068777]
[1693611904839,0.006,25830.0,25829.0,1.58469445]
[1693611905028,0.49344614,25830.0,25829.0,1.36221954]
[1693611905229,0.296478,25830.0,25829.0,1.35977977]
[1693611905442,0.296478,25830.0,25829.0,1.46915791]
[1693611906540,0.860317,25830.0,25829.0,1.18482918]
[1693611906738,1.005556,25830.0,25829.0,0.74273447]
[1693611906930,1.005556,25830.0,25829.0,0.46937947]
[1693611907135,0.96030309,25830.0,25829.0,0.61462447]
[1693611908444,0.96030309,25830.0,25829.0,0.59462447]
[1693611908646,0.96030309,25830.0,25829.0,0.72772124]
[1693611908838,0.860317,25830.0,25829.0,0.72772124]
[1693611909235,0.860317,25830.0,25829.0,0.85296724]
[1693611909441,0.96030309,25830.0,25829.0,0.85296724]
[1693611910551,0.860317,25830.0,25829.0,0.85296724]